bitfinex-derivatives/quotes_BTCF0:USTF0_20251130
["timestamp","ask_amount","ask_price","bid_price","bid_amount"]
[1764493145769,0.40626,91225.0,91224.0,0.0556604]
[1764493146973,0.40626,91225.0,91224.0,0.0586604]
[1764493148466,0.4198,91225.0,91224.0,0.0586604]
[1764493149468,0.04626,91225.0,91224.0,0.0586604]
[1764493149671,0.06626,91225.0,91224.0,0.0586604]
[1764493150265,0.4598,91225.0,91224.0,0.0586604]
[1764493151673,0.2198,91225.0,91224.0,0.0586604]
[1764493152065,0.4398,91225.0,91224.0,0.0586604]
[1764493156679,0.4398,91225.0,91224.0,0.0149604]
[1764493158181,0.4398,91225.0,91224.0,0.004]
[1764493158383,0.0572,91220.0,91219.0,0.00016446]
[1764493158581,0.4072,91220.0,91219.0,0.00016446]
[1764493159482,0.4072,91220.0,91219.0,0.00516446]
[1764493159682,0.4072,91220.0,91219.0,0.00616446]
[1764493160193,0.4072,91220.0,91219.0,0.01712556]
[1764493176102,0.4072,91220.0,91219.0,0.03860556]
[1764493177202,0.4072,91220.0,91219.0,0.01712556]
[1764493177402,0.4072,91220.0,91219.0,0.03860556]
[1764493177602,0.4072,91220.0,91219.0,0.06031556]
[1764493179205,0.4072,91220.0,91219.0,0.03860556]
[1764493180298,0.06442,91220.0,91219.0,0.06031556]
[1764493180602,0.04442,91220.0,91219.0,0.06031556]
[1764493193112,0.02323,91220.0,91219.0,0.06031556]
[1764493193407,0.04604,91220.0,91219.0,0.06031556]
[1764493193905,0.04458,91230.0,91229.0,0.04561]
[1764493194110,0.04458,91230.0,91229.0,0.0565699]
[1764493195308,0.04458,91230.0,91229.0,0.0575699]
[1764493195708,0.04458,91230.0,91229.0,0.0585699]
[1764493201720,0.46458,91230.0,91229.0,0.002]
[1764493202415,0.46458,91230.0,91229.0,0.02517]
[1764493203320,0.46458,91230.0,91229.0,0.04761]
[1764493204220,0.04458,91230.0,91229.0,0.04761]
[1764493210623,0.46458,91230.0,91229.0,0.04761]
[1764493214327,0.47818,91230.0,91229.0,0.04761]
[1764493219225,0.06458,91230.0,91229.0,0.04761]
[1764493219533,0.42138,91230.0,91229.0,0.04761]
[1764493219931,0.42138,91230.0,91229.0,0.002]
[1764493220534,0.42138,91230.0,91229.0,0.02496]
[1764493222631,0.42138,91230.0,91229.0,0.04757]
[1764493231530,0.42138,91230.0,91229.0,0.002]
[1764493235334,0.04573,91220.0,91219.0,0.00016446]
[1764493235537,0.41573,91220.0,91219.0,0.00016446]
[1764493236538,0.41573,91220.0,91219.0,0.00416446]
[1764493239940,0.41573,91220.0,91219.0,0.04793446]
[1764493244952,0.41573,91220.0,91219.0,0.02605446]
[1764493247456,0.41573,91220.0,91219.0,0.05973556]
[1764493247656,0.41573,91220.0,91219.0,0.01512556]
[1764493248248,0.41573,91220.0,91219.0,0.03682556]
[1764493248850,0.41573,91220.0,91219.0,0.05954556]
[1764493250674,0.41573,91220.0,91219.0,0.03682556]
[1764493251174,0.41573,91220.0,91219.0,0.05954556]
[1764493254573,0.04465,91207.0,91206.0,0.06287201]
[1764493254767,0.47465,91207.0,91206.0,0.06287201]
[1764493255674,0.47465,91207.0,91206.0,0.06387201]
[1764493256179,0.04465,91207.0,91206.0,0.06387201]
[1764493256478,0.29465,91207.0,91206.0,0.06387201]
[1764493256979,0.29465,91207.0,91206.0,0.06887201]
[1764493257966,0.29465,91207.0,91206.0,0.02445201]
[1764493259770,0.29465,91207.0,91206.0,0.02245201]
[1764493260477,0.29465,91207.0,91206.0,0.02145201]
[1764493260673,0.29465,91207.0,91206.0,0.02245201]
[1764493260878,0.29465,91207.0,91206.0,0.06687201]
[1764493261473,0.29465,91207.0,91206.0,0.02245201]
[1764493261786,0.04465,91198.0,91197.0,0.00016446]
[1764493261987,0.41465,91198.0,91197.0,0.00016446]
[1764493262876,0.41465,91198.0,91197.0,0.01799874]
[1764493263071,0.41465,91198.0,91197.0,0.00016446]
[1764493263874,0.41465,91198.0,91197.0,0.00116446]
[1764493265385,0.41465,91198.0,91197.0,0.01930117]
[1764493265782,0.80465,91198.0,91197.0,0.01930117]
[1764493265974,0.52465,91198.0,91197.0,0.01930117]
[1764493266786,0.75465,91198.0,91197.0,0.01930117]
[1764493267089,0.41465,91198.0,91197.0,0.01930117]
[1764493267479,0.41465,91198.0,91197.0,0.03026497]
[1764493268185,0.41465,91198.0,91177.0,0.04454604]
[1764493268186,0.0292,91178.0,91177.0,0.04454604]
[1764493268384,0.0292,91178.0,91177.0,0.01109224]
[1764493268385,0.4,91178.0,91177.0,0.01109224]
[1764493268592,0.15777681,91187.0,91186.0,0.04442]
[1764493268780,0.3892,91187.0,91186.0,0.04442]
[1764493269790,0.3902,91187.0,91186.0,0.04442]
[1764493270993,0.3902,91187.0,91186.0,0.04542]
[1764493273286,0.001,91187.0,91186.0,0.04542]
[1764493273493,0.01476446,91196.0,91195.0,0.067884]
[1764493273691,0.32476446,91196.0,91195.0,0.067884]
[1764493273892,0.33936446,91196.0,91195.0,0.067884]
[1764493274589,0.42936446,91196.0,91195.0,0.067884]
[1764493275600,0.43236446,91196.0,91195.0,0.067884]
[1764493280201,0.03236446,91196.0,91195.0,0.067884]
[1764493280405,0.01776446,91196.0,91195.0,0.067884]
[1764493281202,0.03236446,91196.0,91195.0,0.067884]
[1764493286314,0.00316446,91196.0,91195.0,0.067884]
[1764493287019,0.01776446,91196.0,91195.0,0.067884]
[1764493287310,0.12857681,91220.0,91217.0,0.0543113]
[1764493287514,0.17,91220.0,91215.0,0.01373]
[1764493287816,0.0292,91230.0,91229.0,0.04335]
[1764493288018,0.3892,91230.0,91229.0,0.04335]
[1764493288314,0.51595107,91230.0,91229.0,0.04335]
[1764493288516,0.0292,91221.0,91220.0,0.05724446]
[1764493288704,0.04387,91217.0,91216.0,0.0109615]
[1764493289016,0.41387,91217.0,91216.0,0.0109615]
[1764493289919,0.41387,91217.0,91216.0,0.0327715]
[1764493290118,0.41887,91217.0,91216.0,0.0327715]
[1764493291213,0.41887,91217.0,91216.0,0.0543115]
[1764493292018,0.41787,91217.0,91216.0,0.0543115]
[1764493292322,0.04787,91217.0,91216.0,0.0543115]
[1764493292623,0.04687,91217.0,91216.0,0.0543115]
[1764493293128,0.04387,91230.0,91229.0,0.0543099]
[1764493295126,0.04387,91230.0,91229.0,0.0553099]
[1764493295820,0.04387,91230.0,91229.0,0.0543099]
[1764493296525,0.04387,91230.0,91229.0,0.0553099]
[1764493298925,0.46387,91230.0,91229.0,0.0553099]
[1764493299728,0.46387,91230.0,91229.0,0.0543099]
[1764493301626,0.46487,91230.0,91229.0,0.0543099]
[1764493302222,0.47722,91230.0,91229.0,0.0543099]
[1764493302423,0.47722,91230.0,91229.0,0.0327699]
[1764493302733,0.47722,91230.0,91229.0,0.0109599]
[1764493303228,0.43335,91230.0,91225.0,0.0109603]
[1764493303531,0.04449,91223.0,91222.0,0.0109606]
[1764493303827,0.42449,91223.0,91222.0,0.0338106]
[1764493304023,0.42449,91223.0,91222.0,0.0554706]
[1764493304418,0.42449,91223.0,91222.0,0.0109606]
[1764493305428,0.01335,91220.0,91219.0,0.0109611]
[1764493305729,0.48784,91220.0,91219.0,0.0109611]
[1764493306133,0.48784,91220.0,91219.0,0.0338111]
[1764493307626,0.48984,91220.0,91219.0,0.0338111]
[1764493308034,0.48784,91220.0,91219.0,0.0338111]
[1764493308235,0.48884,91220.0,91219.0,0.0338111]
[1764493308630,0.48784,91220.0,91219.0,0.0338111]
[1764493308933,0.48984,91220.0,91219.0,0.0338111]
[1764493309231,0.48984,91220.0,91219.0,0.0554711]
[1764493310827,0.48984,91220.0,91219.0,0.0109611]
[1764493311028,0.44535,91220.0,91215.0,0.02285]
[1764493311230,0.04449,91216.0,91215.0,0.0554716]
[1764493313434,0.01335,91215.0,91212.0,0.010962]
[1764493313736,0.04449,91213.0,91212.0,0.010962]
[1764493313939,0.01103,91210.0,91209.0,0.0109623]
[1764493314232,0.42552,91210.0,91209.0,0.0109623]
[1764493314433,0.42552,91210.0,91209.0,0.0338123]
[1764493314635,0.42552,91210.0,91209.0,0.0554723]
[1764493315039,0.41449,91210.0,91209.0,0.0554723]
[1764493315333,0.02338,91210.0,91209.0,0.0554723]
[1764493315530,0.002,91210.0,91209.0,0.0554723]
[1764493315729,0.04649,91210.0,91209.0,0.0554723]
[1764493316632,0.04449,91210.0,91209.0,0.0554723]
[1764493317342,0.04449,91210.0,91209.0,0.0564723]
[1764493318339,0.17305495,91220.0,91219.0,0.0554711]
[1764493318529,0.42449,91220.0,91219.0,0.0554711]
[1764493319734,0.42649,91220.0,91219.0,0.0554711]
[1764493320645,0.44034,91220.0,91219.0,0.0554711]
[1764493321639,0.44034,91220.0,91219.0,0.0338111]
[1764493321835,0.44034,91220.0,91219.0,0.0554711]
[1764493327251,0.04649,91220.0,91219.0,0.0554711]
[1764493329052,0.04449,91220.0,91219.0,0.0564711]
[1764493329559,0.04449,91220.0,91219.0,0.0554711]
[1764493333760,0.04449,91220.0,91219.0,0.0109611]
[1764493333761,0.47482,91220.0,91219.0,0.0109611]
[1764493334058,0.04456,91208.0,91207.0,0.05636271]
[1764493334860,0.41456,91208.0,91207.0,0.00011011]
[1764493335659,0.04456,91184.0,91183.0,0.14328799]
[1764493335859,0.04456,91184.0,91183.0,0.04529]
[1764493336048,0.04456,91184.0,91183.0,0.0562555]
[1764493337261,0.04456,91184.0,91183.0,0.0612555]
[1764493345461,0.04409446,91193.0,91192.0,0.0556244]
[1764493345666,0.11409446,91193.0,91192.0,0.0556244]
[1764493346671,0.04409446,91193.0,91192.0,0.0556244]
[1764493346871,0.00016446,91193.0,91192.0,0.0576244]
[1764493347670,0.00016446,91193.0,91192.0,0.0586244]
[1764493347671,0.02186446,91193.0,91192.0,0.0586244]
[1764493347874,0.04409446,91193.0,91192.0,0.0586244]
[1764493350866,0.00016446,91193.0,91192.0,0.4586244]
[1764493351067,0.04393,91210.0,91209.0,0.0556224]
[1764493351978,0.05684,91225.0,91224.0,0.0556205]
[1764493352167,0.47684,91225.0,91224.0,0.0556205]
[1764493354372,0.47784,91225.0,91224.0,0.0556205]
[1764493355368,0.47684,91225.0,91224.0,0.0556205]
[1764493355683,0.47784,91225.0,91224.0,0.0556205]
[1764493356377,0.16493,91225.0,91224.0,0.0556205]
[1764493356572,0.04493,91225.0,91224.0,0.0556205]
[1764493356773,0.41493,91225.0,91224.0,0.0556205]
[1764493358679,0.41393,91225.0,91224.0,0.0556205]
[1764493360574,0.42684,91225.0,91224.0,0.0556205]
[1764493361173,0.04393,91225.0,91224.0,0.0556205]
[1764493363484,0.0566,91225.0,91224.0,0.0556205]
[1764493364777,0.0576,91225.0,91224.0,0.0556205]
[1764493365177,0.0566,91225.0,91224.0,0.0556205]
[1764493365577,0.04393,91225.0,91224.0,0.0556205]
[1764493372384,0.17308919,91234.0,91233.0,0.0543395]
[1764493372681,0.04454446,91234.0,91233.0,0.0543395]
[1764493373692,0.04754446,91234.0,91233.0,0.0543395]
[1764493380193,0.04438,91231.0,91230.0,0.0109597]
[1764493380384,0.04438,91225.0,91224.0,0.05450496]
[1764493380699,0.17608919,91234.0,91233.0,0.0543395]
[1764493380900,0.07461498,91234.0,91233.0,0.0543395]
[1764493381398,0.07161498,91234.0,91233.0,0.0543395]
[1764493382085,0.05085,91225.0,91224.0,0.00016446]
[1764493382292,0.45085,91225.0,91224.0,0.00016446]
[1764493384798,0.45385,91225.0,91224.0,0.00016446]
[1764493385698,0.05731,91220.0,91219.0,0.0109611]
[1764493385908,0.44731,91220.0,91219.0,0.0109611]
[1764493386900,0.04438,91213.0,91212.0,0.0543418]
[1764493387103,0.45438,91213.0,91212.0,0.0543418]
[1764493389606,0.45538,91213.0,91212.0,0.0543418]
[1764493392302,0.45538,91213.0,91212.0,0.0109618]
[1764493392502,0.10538,91213.0,91212.0,0.0543418]
[1764493393107,0.44538,91213.0,91212.0,0.0543418]
[1764493395609,0.44538,91213.0,91212.0,0.02235]
[1764493395811,0.0574,91210.0,91209.0,0.0109623]
[1764493398413,0.0594,91210.0,91209.0,0.0109623]
[1764493399116,0.38486,91210.0,91206.0,0.0109627]
[1764493399317,0.04454,91207.0,91206.0,0.0109627]
[1764493399613,0.45454,91207.0,91206.0,0.0109627]
[1764493400414,0.45554,91207.0,91206.0,0.0109627]
[1764493400916,0.45654,91207.0,91206.0,0.0330927]
[1764493404418,0.04654,91207.0,91206.0,0.0540327]
[1764493404618,0.02457,91207.0,91206.0,0.0540327]
[1764493405114,0.0477,91207.0,91206.0,0.0540327]
[1764493406619,0.0457,91207.0,91206.0,0.0540327]
[1764493407518,0.0448,91216.0,91215.0,0.0235716]
[1764493407832,0.0448,91216.0,91215.0,0.0666416]
[1764493409517,0.01306,91232.0,91216.0,0.04307]
[1764493409718,0.12854473,91226.0,91216.0,0.04307]
[1764493409925,0.04496446,91217.0,91216.0,0.04307]
[1764493416424,0.00016446,91217.0,91216.0,0.45307]
[1764493416619,0.18640473,91240.0,91239.0,0.0540287]
[1764493416821,0.31494229,91240.0,91239.0,0.0540287]
[1764493419126,0.31894229,91240.0,91239.0,0.0540287]
[1764493419428,0.2788,91240.0,91239.0,0.0540287]
[1764493420131,0.29186,91240.0,91239.0,0.0540287]
[1764493420733,0.0448,91237.0,91236.0,0.0328891]
[1764493420934,0.4548,91237.0,91236.0,0.0328891]
[1764493421533,0.4548,91237.0,91236.0,0.0540291]
[1764493421731,0.4548,91237.0,91236.0,0.0109591]
[1764493421929,0.4548,91237.0,91236.0,0.0328891]
[1764493422130,0.4578,91237.0,91236.0,0.0328891]
[1764493422523,0.4578,91237.0,91236.0,0.0540291]
[1764493424217,0.1678,91237.0,91236.0,0.0540291]
[1764493428037,0.4578,91237.0,91236.0,0.0109591]
[1764493428237,0.4578,91237.0,91236.0,0.0556991]
[1764493429426,0.1278,91237.0,91236.0,0.0556991]
[1764493431133,0.4378,91237.0,91236.0,0.0556991]
[1764493440447,0.1978,91237.0,91236.0,0.0556991]
[1764493441546,0.4278,91237.0,91236.0,0.0556991]
[1764493441744,0.04372,91234.0,91233.0,0.0329994]
[1764493442849,0.04672,91234.0,91233.0,0.0556994]
[1764493444249,0.04572,91234.0,91233.0,0.0556994]
[1764493445056,0.04372,91231.0,91230.0,0.01112416]
[1764493445251,0.42372,91231.0,91230.0,0.01112416]
[1764493446246,0.42372,91231.0,91230.0,0.00016446]
[1764493446452,0.04372,91217.0,91216.0,0.0330015]
[1764493447043,0.04372,91217.0,91216.0,0.0557015]
[1764493447442,0.04372,91217.0,91216.0,0.0567015]
[1764493448137,0.04372,91217.0,91216.0,0.0587015]
[1764493448537,0.04572,91217.0,91216.0,0.0567015]
[1764493449652,0.04572,91217.0,91216.0,0.0557015]
[1764493450544,0.04372,91217.0,91216.0,0.0557015]
[1764493450738,0.04472,91217.0,91216.0,0.0557015]
[1764493451647,0.04372,91217.0,91216.0,0.0557015]
[1764493451846,0.04572,91217.0,91216.0,0.0557015]
[1764493453347,0.04472,91217.0,91216.0,0.0557015]
[1764493453945,0.04472,91217.0,91216.0,0.0658515]
[1764493455052,0.04472,91217.0,91216.0,0.0557015]
[1764493460658,0.04372,91217.0,91216.0,0.0557015]
[1764493460959,0.04472,91217.0,91216.0,0.0557015]
[1764493465458,0.44472,91217.0,91216.0,0.04474]
[1764493465647,0.44472,91217.0,91216.0,0.02204]
[1764493466152,0.44472,91217.0,91216.0,0.04346]
[1764493466353,0.44372,91217.0,91216.0,0.04346]
[1764493466553,0.44472,91217.0,91216.0,0.04346]
[1764493466960,0.44372,91217.0,91216.0,0.04346]
[1764493467157,0.01276,91216.0,91213.0,0.02188]
[1764493467461,0.01276,91216.0,91210.0,0.0542622]
[1764493467462,0.04297,91211.0,91210.0,0.0542622]
[1764493467658,0.41297,91211.0,91210.0,0.0542622]
[1764493468854,0.15297,91211.0,91210.0,0.0542622]
[1764493469862,0.33297,91211.0,91210.0,0.0542622]
[1764493472859,0.33397,91211.0,91210.0,0.0542622]
[1764493473459,0.33297,91211.0,91210.0,0.0542622]
[1764493474557,0.33397,91211.0,91210.0,0.0542622]
[1764493474757,0.04397,91211.0,91210.0,0.0542622]
[1764493475966,0.04297,91211.0,91210.0,0.0542622]
[1764493476568,0.04297,91211.0,91210.0,0.0552622]
[1764493477764,0.03264,91224.0,91223.0,0.02188]
[1764493477965,0.04313446,91226.0,91225.0,0.0433]
[1764493478173,0.00016446,91226.0,91225.0,0.0433]
[1764493479072,0.00316446,91226.0,91225.0,0.0433]
[1764493480170,0.00016446,91226.0,91225.0,0.0453]
[1764493481464,0.00016446,91226.0,91225.0,0.0463]
[1764493482374,0.02139446,91226.0,91225.0,0.0463]
[1764493482763,0.02139446,91226.0,91225.0,0.0453]
[1764493487576,0.00016446,91226.0,91225.0,0.0453]
[1764493491996,0.04337,91244.0,91243.0,0.0555283]
[1764493494097,0.00016446,91253.0,91245.0,0.04457]
[1764493494289,0.00016446,91253.0,91244.0,0.01368]
[1764493494290,0.05701,91272.0,91271.0,0.04457]
[1764493495598,0.05701,91272.0,91271.0,0.02192]
[1764493495897,0.04337,91271.0,91270.0,0.0109549]
[1764493496392,0.04337,91271.0,91270.0,0.0328749]
[1764493497096,0.04537,91271.0,91270.0,0.04931723]
[1764493497888,0.04537,91271.0,91270.0,0.07196723]
[1764493498799,0.04353437,91281.0,91280.0,0.0555238]
[1764493500496,0.04353437,91281.0,91280.0,0.0712038]
[1764493501097,0.00016437,91281.0,91280.0,0.0712038]
[1764493501294,0.04364387,91286.0,91285.0,0.0692032]
[1764493502601,0.04364387,91286.0,91285.0,0.0702032]
[1764493503003,0.04364387,91286.0,91285.0,0.0692032]
[1764493503205,0.04364387,91286.0,91285.0,0.0722032]
[1764493505105,0.04364387,91286.0,91285.0,0.0712032]
[1764493505296,0.02259387,91286.0,91285.0,0.0712032]
[1764493505602,0.00027387,91286.0,91285.0,0.0692032]
[1764493505907,0.02259387,91286.0,91285.0,0.0722032]
[1764493506405,0.02248437,91295.0,91294.0,0.0555221]
[1764493506605,0.04353437,91295.0,91294.0,0.0555221]
[1764493507507,0.00016437,91295.0,91294.0,0.0555221]
[1764493508001,0.04353437,91295.0,91294.0,0.0555221]
[1764493509604,0.00016437,91295.0,91294.0,0.0585221]
[1764493509809,0.02248437,91295.0,91294.0,0.0585221]
[1764493509998,0.00016437,91295.0,91294.0,0.0555221]
[1764493510198,0.00016437,91295.0,91294.0,0.0575221]
[1764493510803,0.02248437,91295.0,91294.0,0.0575221]
[1764493512500,0.04353437,91295.0,91294.0,0.0575221]
[1764493512697,0.00016437,91295.0,91294.0,0.0575221]
[1764493512896,0.17187225,91310.0,91309.0,0.0555203]
[1764493513093,0.04337,91310.0,91309.0,0.0555203]
[1764493515311,0.04437,91310.0,91309.0,0.0555203]
[1764493519108,0.01245,91310.0,91305.0,0.04307]
[1764493519311,0.01245,91310.0,91295.0,0.05354]
[1764493519312,0.04527,91300.0,91299.0,0.0540215]
[1764493521907,0.04527,91300.0,91299.0,0.0550215]
[1764493530722,0.04527,91300.0,91299.0,0.04407]
[1764493534754,0.05881,91300.0,91299.0,0.02265]
[1764493534914,0.08558487,91300.0,91299.0,0.001]
[1764493536928,0.0453,91289.0,91288.0,0.0556428]
[1764493538126,0.0463,91289.0,91288.0,0.0556428]
[1764493539224,0.0463,91289.0,91288.0,0.04469]
[1764493544730,0.4363,91289.0,91288.0,0.04469]
[1764493545721,0.0663,91289.0,91288.0,0.04469]
[1764493547832,0.04419,91289.0,91288.0,0.0552]
[1764493548038,0.001,91289.0,91288.0,0.0552]
[1764493549036,0.02389,91289.0,91288.0,0.0552]
[1764493549436,0.0452,91289.0,91288.0,0.0552]
[1764493552546,0.0442,91289.0,91288.0,0.0552]
[1764493552742,0.0452,91289.0,91288.0,0.0552]
[1764493554036,0.0442,91286.0,91285.0,0.04542437]
[1764493554236,0.3942,91286.0,91285.0,0.04542437]
[1764493562353,0.0442,91273.0,91272.0,0.09799799]
[1764493562541,0.0442,91271.0,91270.0,0.01644233]
[1764493562854,0.0442,91268.0,91267.0,0.0562153]
[1764493563742,0.3942,91268.0,91267.0,0.06095335]
[1764493564243,0.3942,91268.0,91267.0,0.07190875]
[1764493565353,0.3942,91268.0,91267.0,0.07290875]
[1764493566256,0.3942,91268.0,91267.0,0.07790875]
[1764493568653,0.3942,91268.0,91267.0,0.02169335]
[1764493569258,0.3942,91268.0,91267.0,0.06695335]
[1764493572653,0.3942,91268.0,91267.0,0.02169335]
[1764493582368,0.40692,91268.0,91267.0,0.02169335]
[1764493583370,0.3942,91268.0,91267.0,0.06614335]
[1764493585265,0.3942,91268.0,91267.0,0.03902335]
[1764493585465,0.3942,91268.0,91267.0,0.05342436]
[1764493587362,0.04212,91276.0,91275.0,0.04445]
[1764493595164,0.04401,91292.0,91291.0,0.04244]
[1764493595384,0.45401,91292.0,91291.0,0.04244]
[1764493596278,0.45801,91292.0,91291.0,0.04244]
[1764493598478,0.00016427,91301.0,91291.0,0.04244]
[1764493598479,0.04401,91325.0,91324.0,0.04244]
[1764493598681,0.00027375,91326.0,91325.0,0.04244]
[1764493599076,0.04428375,91326.0,91325.0,0.04244]
[1764493599277,0.05779375,91326.0,91325.0,0.04244]
[1764493599984,0.06379375,91326.0,91325.0,0.04244]
[1764493600173,0.05028375,91326.0,91325.0,0.04244]
[1764493601182,0.05128375,91326.0,91325.0,0.04244]
[1764493602384,0.00727375,91326.0,91325.0,0.04244]
[1764493604880,0.02853375,91326.0,91325.0,0.04244]
[1764493607879,0.04972375,91326.0,91325.0,0.04244]
[1764493608583,0.02853375,91326.0,91325.0,0.04244]
[1764493608791,0.00727375,91326.0,91325.0,0.04244]
[1764493608989,0.04972375,91326.0,91325.0,0.04244]
[1764493611089,0.00727375,91326.0,91325.0,0.05354]
[1764493611481,0.02853375,91326.0,91325.0,0.05354]
[1764493612191,0.04972375,91326.0,91325.0,0.05354]
[1764493612386,0.04972375,91326.0,91325.0,0.04244]
[1764493619092,0.02853375,91326.0,91325.0,0.04244]
[1764493619299,0.01264,91345.0,91344.0,0.0109462]
[1764493619497,0.05509,91350.0,91349.0,0.0546656]
[1764493619984,0.05509,91350.0,91349.0,0.06885057]
[1764493620186,0.05509,91350.0,91349.0,0.04759057]
[1764493620487,0.05509,91350.0,91349.0,0.02513057]
[1764493621093,0.05609,91350.0,91349.0,0.02513057]
[1764493623195,0.05609,91350.0,91349.0,0.04759057]
[1764493623998,0.05609,91350.0,91349.0,0.02513057]
[1764493624294,0.05609,91350.0,91349.0,0.04759057]
[1764493627298,0.08280291,91350.0,91349.0,0.04759057]
[1764493627703,0.08280291,91350.0,91349.0,0.02513057]
[1764493629312,0.08280291,91350.0,91349.0,0.06885057]
[1764493631309,0.07016291,91350.0,91349.0,0.06885057]
[1764493631709,0.08280291,91350.0,91349.0,0.06885057]
[1764493632112,0.05609,91350.0,91349.0,0.06885057]
[1764493634113,0.04345,91350.0,91349.0,0.06885057]
[1764493635406,0.05719,91350.0,91349.0,0.04759057]
[1764493635602,0.05719,91350.0,91349.0,0.02513057]
[1764493635810,0.05719,91350.0,91349.0,0.04819057]
[1764493636417,0.05719,91350.0,91349.0,0.07078057]
[1764493638213,0.08370115,91350.0,91349.0,0.01418497]
[1764493638512,0.05837,91345.0,91344.0,0.0109461]
[1764493639117,0.05837,91345.0,91344.0,0.0253286]
[1764493640817,0.05937,91345.0,91344.0,0.0253286]
[1764493642220,0.08589232,91345.0,91344.0,0.0253286]
[1764493646126,0.08589232,91345.0,91344.0,0.0463886]
[1764493647421,0.08589232,91345.0,91344.0,0.0253286]
[1764493648720,0.04456,91341.0,91325.0,0.0109483]
[1764493648920,0.04456,91326.0,91325.0,0.0534783]
[1764493649832,0.04456,91326.0,91325.0,0.0584783]
[1764493650623,0.04456,91326.0,91325.0,0.07437239]
[1764493653019,0.00016427,91335.0,91334.0,0.04253]
[1764493653427,0.04472427,91335.0,91334.0,0.04253]
[1764493654027,0.00016427,91335.0,91334.0,0.04253]
[1764493654233,0.05747,91350.0,91349.0,0.04253]
[1764493655032,0.05747,91350.0,91349.0,0.0534756]
[1764493656236,0.05847,91350.0,91349.0,0.0534756]
[1764493662536,0.001,91350.0,91349.0,0.0534756]
[1764493662729,0.04466968,91359.0,91358.0,0.0534745]
[1764493663324,0.02188,91344.0,91343.0,0.04414]
[1764493663528,0.04307,91344.0,91343.0,0.0550863]
[1764493664224,0.04307,91350.0,91349.0,0.0550856]
[1764493665531,0.05679,91350.0,91349.0,0.0550856]
[1764493667729,0.04307,91341.0,91340.0,0.02170427]
[1764493668033,0.41307,91341.0,91340.0,0.02170427]
[1764493668432,0.41307,91341.0,91340.0,0.04430427]
[1764493668736,0.41307,91341.0,91340.0,0.02270427]
[1764493669035,0.05579,91350.0,91349.0,0.0550856]
[1764493669338,0.48579,91350.0,91349.0,0.04414]
[1764493670644,0.48679,91350.0,91349.0,0.02154]
[1764493673541,0.04307,91348.0,91347.0,0.0109457]
[1764493674237,0.04307,91341.0,91340.0,0.00016427]
[1764493674541,0.41307,91341.0,91340.0,0.00016427]
[1764493675533,0.41307,91341.0,91340.0,0.04530427]
[1764493677436,0.41307,91341.0,91340.0,0.02270427]
[1764493679246,0.04307,91341.0,91340.0,0.04530427]
[1764493681138,0.04307,91350.0,91349.0,0.0550856]
[1764493682944,0.04407,91350.0,91349.0,0.0550856]
[1764493683444,0.04407,91350.0,91340.0,0.14076191]
[1764493683445,0.04307,91342.0,91341.0,0.11953799]
[1764493683644,0.04307,91342.0,91341.0,0.0324865]
[1764493684031,0.04307,91342.0,91341.0,0.0550865]
[1764493684634,0.04307,91342.0,91341.0,0.0560865]
[1764493686137,0.04307,91342.0,91341.0,0.04514]
[1764493693249,0.44307,91342.0,91341.0,0.001]
[1764493693448,0.46933196,91342.0,91341.0,0.001]
[1764493695342,0.46933196,91342.0,91325.0,0.01589409]
[1764493695343,0.01281,91330.0,91325.0,0.01589409]
[1764493695548,0.04477,91299.0,91298.0,0.09108886]
[1764493695856,0.05758,91290.0,91289.0,0.0553227]
[1764493696045,0.04477,91290.0,91289.0,0.05999066]
[1764493696247,0.04477,91290.0,91289.0,0.06015486]
[1764493696746,0.04484836,91290.0,91289.0,0.06015486]
[1764493697351,0.04484836,91290.0,91289.0,0.06415486]
[1764493701851,0.39484836,91290.0,91289.0,0.01978486]
[1764493702252,0.40850836,91290.0,91289.0,0.01978486]
[1764493702447,0.40850836,91290.0,91289.0,0.01678486]
[1764493702652,0.40850836,91290.0,91289.0,0.01662066]
[1764493702854,0.40850836,91290.0,91289.0,0.01262066]
[1764493703054,0.40850836,91290.0,91289.0,0.004]
[1764493703852,0.40850836,91290.0,91289.0,0.02066947]
[1764493704158,0.40850836,91290.0,91289.0,0.004]
[1764493705953,0.40850836,91290.0,91289.0,0.02037805]
[1764493706155,0.40850836,91290.0,91289.0,0.004]
[1764493706762,0.40850836,91290.0,91289.0,0.0202792]
[1764493706963,0.04484836,91290.0,91289.0,0.0644034]
[1764493708177,0.04484836,91290.0,91289.0,0.0654034]
[1764493708667,0.04484836,91290.0,91289.0,0.0604034]
[1764493708872,0.04484836,91290.0,91289.0,0.0654034]
[1764493710067,0.02241427,91299.0,91298.0,0.04396]
[1764493710272,0.00016427,91299.0,91298.0,0.0550759]
[1764493711765,0.00016427,91299.0,91298.0,0.0610759]
[1764493711969,0.00016427,91299.0,91298.0,0.0620759]
[1764493712471,0.05862,91315.0,91314.0,0.04396]
[1764493712672,0.04496,91315.0,91314.0,0.04396]
[1764493712874,0.05862,91322.0,91321.0,0.04396]
[1764493713172,0.05862,91322.0,91321.0,0.0441242]
[1764493713364,0.05862,91322.0,91321.0,0.0001642]
[1764493715466,0.05862,91322.0,91321.0,0.0021642]
[1764493717373,0.05862,91322.0,91321.0,0.0001642]
[1764493717678,0.05862,91322.0,91321.0,0.0021642]
[1764493718076,0.05862,91322.0,91321.0,0.0011642]
[1764493719071,0.05862,91322.0,91321.0,0.0001642]
[1764493719378,0.05862,91322.0,91321.0,0.0031642]
[1764493720675,0.05862,91322.0,91321.0,0.0131131]
[1764493722382,0.05862,91322.0,91321.0,0.0347331]
[1764493722679,0.05862,91322.0,91321.0,0.0570731]
[1764493723076,0.04496,91322.0,91321.0,0.0570731]
[1764493723382,0.0586,91329.0,91328.0,0.0558381]
[1764493723575,0.0586,91329.0,91328.0,0.0560023]
[1764493724073,0.0586,91329.0,91328.0,0.0330723]
[1764493725075,0.0586,91329.0,91328.0,0.0370723]
[1764493725281,0.0586,91329.0,91328.0,0.0600023]
[1764493726583,0.0586,91329.0,91328.0,0.0590023]
[1764493727178,0.0586,91329.0,91328.0,0.0580023]
[1764493727780,0.4286,91329.0,91328.0,0.0580023]
[1764493728083,0.4286,91329.0,91328.0,0.0131123]
[1764493728975,0.4286,91329.0,91328.0,0.0350723]